[Event "Titled Tuesday Blitz May 24 Early 2022"]
[White "Perez Leiva, Jerzy Jesus"]
[Black "Preotu, Razvan"]
[WhiteFideId "3524337"]
[BlackFideId "2613280"]
[WhiteElo "2287"]
[BlackElo "2407"]
[Result "0-1"]
[Round "08"]
[TimeControl "180+1"]
[Date "2022.05.25"]
[WhiteClock "0:00:03"]
[BlackClock "0:01:22"]

1. e4 {[%clk 0:02:59]}  c5 {[%clk 0:03:00]} 2. Nf3 {[%clk 0:02:56]}  d6 {[%clk 0:03:00]} 3. d4 {[%clk 0:02:55]}  cxd4 {[%clk 0:03:01]} 4. Nxd4 {[%clk 0:02:56]}  Nf6 {[%clk 0:03:01]} 5. Nc3 {[%clk 0:02:54]}  a6 {[%clk 0:03:02]} 6. Bg5 {[%clk 0:02:48]}  e6 {[%clk 0:03:01]} 7. f4 {[%clk 0:02:48]}  Be7 {[%clk 0:03:01]} 8. Qf3 {[%clk 0:02:48]}  Qc7 {[%clk 0:03:00]} 9. O-O-O {[%clk 0:02:45]}  Nbd7 {[%clk 0:03:00]} 10. g4 {[%clk 0:02:43]}  b5 {[%clk 0:02:58]} 11. Bxf6 {[%clk 0:02:42]}  Nxf6 {[%clk 0:02:57]} 12. g5 {[%clk 0:02:42]}  Nd7 {[%clk 0:02:58]} 13. f5 {[%clk 0:02:43]}  O-O {[%clk 0:02:58]} 14. Kb1 {[%clk 0:01:54]}  b4 {[%clk 0:02:55]} 15. Nce2 {[%clk 0:01:53]}  Bb7 {[%clk 0:02:52]} 16. Rg1 {[%clk 0:01:48]}  exf5 {[%clk 0:02:39]} 17. Nxf5 {[%clk 0:01:45]}  Ne5 {[%clk 0:02:37]} 18. Qg2 {[%clk 0:01:23]}  Rfc8 {[%clk 0:02:27]} 19. Nf4 {[%clk 0:01:19]}  Bf8 {[%clk 0:02:15]} 20. Bd3 {[%clk 0:01:03]}  a5 {[%clk 0:02:11]} 21. Nh5 {[%clk 0:01:02]}  a4 {[%clk 0:01:55]} 22. Nf6+ {[%clk 0:00:31]}  gxf6 {[%clk 0:01:52]} 23. gxf6+ {[%clk 0:00:32]}  Ng6 {[%clk 0:01:52]} 24. Qh3 {[%clk 0:00:22]}  b3 {[%clk 0:01:39]} 25. cxb3 {[%clk 0:00:21]}  axb3 {[%clk 0:01:38]} 26. a3 {[%clk 0:00:22]}  Ba6 {[%clk 0:01:25]} 27. Bxa6 {[%clk 0:00:14]}  Qc2+ {[%clk 0:01:21]} 28. Ka1 {[%clk 0:00:15]}  Rxa6 {[%clk 0:01:21]} 29. Qg2 {[%clk 0:00:02]}  Rxa3+ {[%clk 0:01:20]} 30. bxa3 {[%clk 0:00:02]}  b2+ {[%clk 0:01:21]} 31. Ka2 {[%clk 0:00:03]}  b1=Q# {[%clk 0:01:22]} 0-1


[Site "https://www.chess.com"]

[Event "Titled Tuesday Blitz May 24 Early 2022"]
[White "Perez Rodriguez, Jennifer"]
[Black "Perez Gormaz, Matias"]
[WhiteFideId "3507831"]
[BlackFideId "3406342"]
[WhiteElo "2170"]
[BlackElo "2341"]
[Result "0-1"]
[Round "08"]
[TimeControl "180+1"]
[Date "2022.05.25"]
[WhiteClock "0:00:46"]
[BlackClock "0:01:09"]

1. e4 {[%clk 0:03:00]}  d5 {[%clk 0:02:59]} 2. exd5 {[%clk 0:03:00]}  Qxd5 {[%clk 0:03:00]} 3. d4 {[%clk 0:03:00]}  Qd8 {[%clk 0:03:01]} 4. c4 {[%clk 0:03:00]}  e5 {[%clk 0:03:00]} 5. dxe5 {[%clk 0:02:55]}  Qxd1+ {[%clk 0:03:00]} 6. Kxd1 {[%clk 0:02:56]}  Nc6 {[%clk 0:03:01]} 7. Nf3 {[%clk 0:02:55]}  Bg4 {[%clk 0:03:00]} 8. Be2 {[%clk 0:02:52]}  O-O-O+ {[%clk 0:03:00]} 9. Kc2 {[%clk 0:02:51]}  Bf5+ {[%clk 0:02:54]} 10. Kc3 {[%clk 0:02:44]}  Bb4+ {[%clk 0:02:23]} 11. Kb3 {[%clk 0:02:42]}  Bc5 {[%clk 0:02:23]} 12. a3 {[%clk 0:02:29]}  Bxf2 {[%clk 0:02:22]} 13. Nc3 {[%clk 0:02:30]}  Nge7 {[%clk 0:02:19]} 14. Bg5 {[%clk 0:02:19]}  h6 {[%clk 0:02:14]} 15. Bxe7 {[%clk 0:02:13]}  Nxe7 {[%clk 0:02:14]} 16. Rad1 {[%clk 0:02:10]}  Nc6 {[%clk 0:02:13]} 17. Rhf1 {[%clk 0:02:04]}  Bc5 {[%clk 0:02:03]} 18. Rd5 {[%clk 0:01:59]}  b6 {[%clk 0:01:57]} 19. Ka2 {[%clk 0:01:48]}  Be6 {[%clk 0:01:45]} 20. Rxd8+ {[%clk 0:01:45]}  Rxd8 {[%clk 0:01:46]} 21. b3 {[%clk 0:01:22]}  Nd4 {[%clk 0:01:35]} 22. Rd1 {[%clk 0:01:03]}  a6 {[%clk 0:01:12]} 23. Ne4 {[%clk 0:00:53]}  Nxe2 {[%clk 0:01:11]} 24. Rxd8+ {[%clk 0:00:49]}  Kxd8 {[%clk 0:01:11]} 25. b4 {[%clk 0:00:46]}  Bxc4+ {[%clk 0:01:09]} 0-1


[Site "https://www.chess.com"]

[Event "Titled Tuesday Blitz May 24 Early 2022"]
[White "Petre, Nad-Titus"]
[Black "Costachi, Mihnea"]
[WhiteFideId "1204165"]
[BlackFideId "1217518"]
[WhiteElo "2354"]
[BlackElo "2476"]
[Result "0-1"]
[Round "08"]
[TimeControl "180+1"]
[Date "2022.05.24"]
[WhiteClock "0:00:01"]
[BlackClock "0:00:06"]

1. e4 {[%clk 0:03:00]}  e5 {[%clk 0:02:57]} 2. Nf3 {[%clk 0:03:00]}  Nf6 {[%clk 0:02:58]} 3. Nxe5 {[%clk 0:02:59]}  d6 {[%clk 0:02:58]} 4. Nf3 {[%clk 0:03:00]}  Nxe4 {[%clk 0:02:58]} 5. Nc3 {[%clk 0:03:00]}  Nxc3 {[%clk 0:02:58]} 6. dxc3 {[%clk 0:03:01]}  Be7 {[%clk 0:02:59]} 7. Be3 {[%clk 0:03:01]}  Be6 {[%clk 0:03:00]} 8. Bd3 {[%clk 0:02:55]}  Nc6 {[%clk 0:02:59]} 9. Qe2 {[%clk 0:02:53]}  h6 {[%clk 0:02:59]} 10. O-O-O {[%clk 0:02:43]}  a6 {[%clk 0:02:49]} 11. Kb1 {[%clk 0:02:40]}  Qd7 {[%clk 0:02:48]} 12. Nd4 {[%clk 0:02:38]}  Nxd4 {[%clk 0:02:43]} 13. Bxd4 {[%clk 0:02:39]}  Rg8 {[%clk 0:02:34]} 14. Bh7 {[%clk 0:02:37]}  Rh8 {[%clk 0:02:32]} 15. Be4 {[%clk 0:02:37]}  O-O-O {[%clk 0:02:07]} 16. Bxg7 {[%clk 0:02:29]}  Rhg8 {[%clk 0:02:07]} 17. Bxh6 {[%clk 0:02:29]}  Rg4 {[%clk 0:01:55]} 18. f3 {[%clk 0:02:22]}  Rh4 {[%clk 0:01:52]} 19. Bc1 {[%clk 0:02:21]}  Re8 {[%clk 0:01:44]} 20. Qf2 {[%clk 0:02:18]}  Kb8 {[%clk 0:01:43]} 21. h3 {[%clk 0:02:12]}  Rhh8 {[%clk 0:01:38]} 22. b3 {[%clk 0:02:10]}  f5 {[%clk 0:01:36]} 23. Bd5 {[%clk 0:02:09]}  Bf6 {[%clk 0:01:35]} 24. Bb2 {[%clk 0:02:04]}  f4 {[%clk 0:01:31]} 25. Rd2 {[%clk 0:01:51]}  Qf7 {[%clk 0:01:20]} 26. Bxe6 {[%clk 0:01:50]}  Qxe6 {[%clk 0:01:20]} 27. c4 {[%clk 0:01:44]}  Bxb2 {[%clk 0:01:17]} 28. Kxb2 {[%clk 0:01:44]}  Qf6+ {[%clk 0:01:17]} 29. Kb1 {[%clk 0:01:44]}  Re3 {[%clk 0:01:18]} 30. g4 {[%clk 0:01:30]}  Qc3 {[%clk 0:01:10]} 31. h4 {[%clk 0:01:12]}  Rxf3 {[%clk 0:01:08]} 32. Qd4 {[%clk 0:01:12]}  Rxh4 {[%clk 0:00:45]} 33. Rxh4 {[%clk 0:01:00]}  Rf1+ {[%clk 0:00:45]} 34. Rd1 {[%clk 0:01:00]}  Qxd4 {[%clk 0:00:45]} 35. Rxf1 {[%clk 0:01:00]}  f3 {[%clk 0:00:44]} 36. Rh3 {[%clk 0:00:47]}  f2 {[%clk 0:00:43]} 37. Rf3 {[%clk 0:00:44]}  Qxg4 {[%clk 0:00:42]} 38. R3xf2 {[%clk 0:00:43]}  a5 {[%clk 0:00:38]} 39. a4 {[%clk 0:00:41]}  Qd4 {[%clk 0:00:36]} 40. Rf8+ {[%clk 0:00:38]}  Ka7 {[%clk 0:00:36]} 41. R8f4 {[%clk 0:00:36]}  Qc3 {[%clk 0:00:35]} 42. Rf7 {[%clk 0:00:36]}  Kb6 {[%clk 0:00:35]} 43. R7f5 {[%clk 0:00:34]}  c6 {[%clk 0:00:31]} 44. Rd1 {[%clk 0:00:32]}  Qg3 {[%clk 0:00:17]} 45. Rf6 {[%clk 0:00:30]}  Kc5 {[%clk 0:00:18]} 46. Rfxd6 {[%clk 0:00:25]}  Kb4 {[%clk 0:00:18]} 47. R6d3 {[%clk 0:00:24]}  Qe5 {[%clk 0:00:16]} 48. Ka2 {[%clk 0:00:22]}  Qe2 {[%clk 0:00:15]} 49. R1d2 {[%clk 0:00:18]}  Qe1 {[%clk 0:00:11]} 50. Kb2 {[%clk 0:00:13]}  Qe4 {[%clk 0:00:08]} 51. Rd4 {[%clk 0:00:10]}  Qe3 {[%clk 0:00:08]} 52. R2d3 {[%clk 0:00:07]}  Qe2 {[%clk 0:00:04]} 53. Rd2 {[%clk 0:00:05]}  Qe3 {[%clk 0:00:04]} 54. Ka2 {[%clk 0:00:05]}  Kc5 {[%clk 0:00:04]} 55. R4d3 {[%clk 0:00:04]}  Qe4 {[%clk 0:00:04]} 56. Rd7 {[%clk 0:00:03]}  Kb6 {[%clk 0:00:04]} 57. Kb2 {[%clk 0:00:03]}  Qe5+ {[%clk 0:00:04]} 58. R7d4 {[%clk 0:00:03]}  c5 {[%clk 0:00:05]} 59. c3 {[%clk 0:00:02]}  cxd4 {[%clk 0:00:05]} 60. cxd4 {[%clk 0:00:02]}  Qe3 {[%clk 0:00:06]} 61. c5+ {[%clk 0:00:01]}  Kc6 {[%clk 0:00:06]} 62. Rd1 {[%clk 0:00:02]}  Kd5 {[%clk 0:00:06]} 63. Kc2 {[%clk 0:00:01]}  Qe2+ {[%clk 0:00:06]} 64. Rd2 {[%clk 0:00:01]}  Qe4+ {[%clk 0:00:07]} 65. Kb2 {[%clk 0:00:01]}  Qe3 {[%clk 0:00:07]} 66. Rd1 {[%clk 0:00:01]}  Qe2+ {[%clk 0:00:07]} 67. Kc1 {[%clk 0:00:02]}  Qa2 {[%clk 0:00:07]} 68. Rd3 {[%clk 0:00:02]}  Ke4 {[%clk 0:00:06]} 69. Rd1 {[%clk 0:00:01]}  Qxb3 {[%clk 0:00:06]} 70. Rd2 {[%clk 0:00:01]}  Qa3+ {[%clk 0:00:05]} 71. Kd1 {[%clk 0:00:01]}  Qxa4+ {[%clk 0:00:04]} 72. Ke2 {[%clk 0:00:02]}  Kd5 {[%clk 0:00:04]} 73. Kf2 {[%clk 0:00:02]}  Qc4 {[%clk 0:00:05]} 74. Ke3 {[%clk 0:00:02]}  Qc3+ {[%clk 0:00:05]} 75. Rd3 {[%clk 0:00:01]}  Qc1+ {[%clk 0:00:06]} 0-1


[Site "https://www.chess.com"]

[Event "Titled Tuesday Blitz May 24 Early 2022"]
[White "Pham, Tran Gia Phuc"]
[Black "Chernomordik, Pavel"]
[WhiteFideId "12415669"]
[BlackFideId "2804530"]
[WhiteElo "1789"]
[BlackElo "2220"]
[Result "1-0"]
[Round "08"]
[TimeControl "180+1"]
[Date "2022.05.25"]
[WhiteClock "0:00:14"]
[BlackClock "0:00:08"]

1. e4 {[%clk 0:03:00]}  g6 {[%clk 0:02:59]} 2. Nc3 {[%clk 0:03:00]}  Bg7 {[%clk 0:02:58]} 3. d4 {[%clk 0:03:01]}  d6 {[%clk 0:02:57]} 4. Be3 {[%clk 0:03:01]}  a6 {[%clk 0:02:57]} 5. Qd2 {[%clk 0:03:01]}  b5 {[%clk 0:02:56]} 6. a3 {[%clk 0:03:00]}  Bb7 {[%clk 0:02:56]} 7. f3 {[%clk 0:03:00]}  Nd7 {[%clk 0:02:56]} 8. g4 {[%clk 0:03:01]}  c5 {[%clk 0:02:55]} 9. Nge2 {[%clk 0:03:00]}  Qc7 {[%clk 0:02:53]} 10. h4 {[%clk 0:03:00]}  h6 {[%clk 0:02:52]} 11. h5 {[%clk 0:02:59]}  g5 {[%clk 0:02:51]} 12. Ng3 {[%clk 0:02:59]}  e6 {[%clk 0:02:49]} 13. O-O-O {[%clk 0:02:55]}  O-O-O {[%clk 0:02:45]} 14. Qf2 {[%clk 0:02:37]}  Ne7 {[%clk 0:02:41]} 15. dxc5 {[%clk 0:02:31]}  Nxc5 {[%clk 0:02:28]} 16. Bd4 {[%clk 0:02:17]}  Bxd4 {[%clk 0:02:19]} 17. Rxd4 {[%clk 0:02:16]}  Nc6 {[%clk 0:02:18]} 18. Rd2 {[%clk 0:02:08]}  Ne5 {[%clk 0:02:15]} 19. Be2 {[%clk 0:02:04]}  Rd7 {[%clk 0:02:11]} 20. Rhd1 {[%clk 0:02:03]}  Rhd8 {[%clk 0:02:10]} 21. Kb1 {[%clk 0:02:00]}  Kb8 {[%clk 0:01:57]} 22. b4 {[%clk 0:01:55]}  Ncd3 {[%clk 0:01:50]} 23. cxd3 {[%clk 0:01:42]}  Qxc3 {[%clk 0:01:49]} 24. d4 {[%clk 0:01:42]}  Nc4 {[%clk 0:01:45]} 25. Bxc4 {[%clk 0:01:40]}  bxc4 {[%clk 0:01:42]} 26. Rc1 {[%clk 0:01:21]}  Qxa3 {[%clk 0:01:35]} 27. Ra2 {[%clk 0:01:20]}  Qxb4+ {[%clk 0:01:33]} 28. Rb2 {[%clk 0:01:20]}  Qa4 {[%clk 0:01:27]} 29. d5 {[%clk 0:01:19]}  Rc8 {[%clk 0:01:22]} 30. Qd4 {[%clk 0:01:14]}  Rc5 {[%clk 0:01:18]} 31. Ne2 {[%clk 0:01:05]}  e5 {[%clk 0:01:11]} 32. Qc3 {[%clk 0:01:00]}  Rdc7 {[%clk 0:01:10]} 33. Ng3 {[%clk 0:00:56]}  Rb5 {[%clk 0:01:03]} 34. Nf5 {[%clk 0:00:54]}  Rxb2+ {[%clk 0:00:55]} 35. Qxb2 {[%clk 0:00:54]}  Qd7 {[%clk 0:00:47]} 36. Qb6 {[%clk 0:00:51]}  c3 {[%clk 0:00:45]} 37. Nxd6 {[%clk 0:00:43]}  Qa4 {[%clk 0:00:39]} 38. Rc2 {[%clk 0:00:28]}  Qd4 {[%clk 0:00:33]} 39. Qb3 {[%clk 0:00:26]}  Ka7 {[%clk 0:00:25]} 40. Ka2 {[%clk 0:00:24]}  Ba8 {[%clk 0:00:20]} 41. Qa3 {[%clk 0:00:21]}  Qb6 {[%clk 0:00:16]} 42. Nf5 {[%clk 0:00:15]}  Qb5 {[%clk 0:00:13]} 43. Rxc3 {[%clk 0:00:14]}  Qe2+ {[%clk 0:00:12]} 44. Qb2 {[%clk 0:00:13]}  Qxb2+ {[%clk 0:00:09]} 45. Kxb2 {[%clk 0:00:13]}  Rxc3 {[%clk 0:00:08]} 46. Kxc3 {[%clk 0:00:13]}  Kb6 {[%clk 0:00:09]} 47. Nxh6 {[%clk 0:00:13]}  Kc5 {[%clk 0:00:08]} 48. Nxf7 {[%clk 0:00:13]}  a5 {[%clk 0:00:08]} 49. h6 {[%clk 0:00:13]}  a4 {[%clk 0:00:09]} 50. h7 {[%clk 0:00:14]}  a3 {[%clk 0:00:08]} 51. h8=Q {[%clk 0:00:14]} 1-0


[Site "https://www.chess.com"]

[Event "Titled Tuesday Blitz May 24 Early 2022"]
[White "Prokofiev, Valentyn"]
[Black "Vakhlamov, Igor L."]
[WhiteFideId "14160161"]
[BlackFideId "24126748"]
[WhiteElo "2174"]
[BlackElo "2401"]
[Result "1-0"]
[Round "08"]
[TimeControl "180+1"]
[Date "2022.05.25"]
[WhiteClock "0:00:28"]
[BlackClock "0:00:02"]

1. d4 {[%clk 0:03:00]}  d5 {[%clk 0:02:59]} 2. c4 {[%clk 0:03:00]}  e6 {[%clk 0:03:00]} 3. Nf3 {[%clk 0:03:01]}  Nf6 {[%clk 0:02:59]} 4. e3 {[%clk 0:03:02]}  Be7 {[%clk 0:02:59]} 5. b3 {[%clk 0:03:00]}  O-O {[%clk 0:02:59]} 6. Bd3 {[%clk 0:03:00]}  dxc4 {[%clk 0:02:52]} 7. bxc4 {[%clk 0:03:00]}  c5 {[%clk 0:02:52]} 8. O-O {[%clk 0:03:00]}  cxd4 {[%clk 0:02:50]} 9. exd4 {[%clk 0:03:01]}  b6 {[%clk 0:02:49]} 10. Bb2 {[%clk 0:03:01]}  Bb7 {[%clk 0:02:50]} 11. Nbd2 {[%clk 0:03:01]}  Nbd7 {[%clk 0:02:50]} 12. Rc1 {[%clk 0:03:01]}  Qc7 {[%clk 0:02:48]} 13. Qe2 {[%clk 0:03:01]}  Qf4 {[%clk 0:02:41]} 14. d5 {[%clk 0:02:53]}  Nc5 {[%clk 0:02:20]} 15. Be5 {[%clk 0:02:52]}  Qg4 {[%clk 0:02:20]} 16. h3 {[%clk 0:02:47]}  Qh5 {[%clk 0:02:19]} 17. d6 {[%clk 0:01:44]}  Bd8 {[%clk 0:02:19]} 18. Rfe1 {[%clk 0:01:43]}  Nfd7 {[%clk 0:02:10]} 19. Bg3 {[%clk 0:01:42]}  Nxd3 {[%clk 0:02:00]} 20. Qxd3 {[%clk 0:01:43]}  Nc5 {[%clk 0:02:00]} 21. Qc2 {[%clk 0:01:41]}  Bf6 {[%clk 0:01:56]} 22. Nb3 {[%clk 0:01:38]}  Bxf3 {[%clk 0:01:49]} 23. Nxc5 {[%clk 0:01:37]}  bxc5 {[%clk 0:01:42]} 24. gxf3 {[%clk 0:01:37]}  Qxh3 {[%clk 0:01:37]} 25. Rcd1 {[%clk 0:01:36]}  Rfd8 {[%clk 0:01:30]} 26. Qe4 {[%clk 0:01:36]}  Bd4 {[%clk 0:01:13]} 27. Rxd4 {[%clk 0:01:27]}  cxd4 {[%clk 0:01:13]} 28. c5 {[%clk 0:01:28]}  d3 {[%clk 0:00:35]} 29. c6 {[%clk 0:01:18]}  e5 {[%clk 0:00:28]} 30. Qxe5 {[%clk 0:01:15]}  d2 {[%clk 0:00:21]} 31. Rd1 {[%clk 0:01:14]}  Qh6 {[%clk 0:00:21]} 32. Qc3 {[%clk 0:00:55]}  Rxd6 {[%clk 0:00:11]} 33. Bxd6 {[%clk 0:00:49]}  Qxd6 {[%clk 0:00:12]} 34. c7 {[%clk 0:00:27]}  Rc8 {[%clk 0:00:08]} 35. Rxd2 {[%clk 0:00:27]}  Qg6+ {[%clk 0:00:08]} 36. Kf1 {[%clk 0:00:27]}  Qb1+ {[%clk 0:00:08]} 37. Ke2 {[%clk 0:00:28]}  Re8+ {[%clk 0:00:05]} 38. Qe3 {[%clk 0:00:28]}  Rxe3+ {[%clk 0:00:04]} 39. fxe3 {[%clk 0:00:28]}  Qb5+ {[%clk 0:00:04]} 40. Kf2 {[%clk 0:00:28]}  Qe8 {[%clk 0:00:02]} 41. Rd8 {[%clk 0:00:28]} 1-0


[Site "https://www.chess.com"]

[Event "Titled Tuesday Blitz May 24 Early 2022"]
[White "Proudian, Armen"]
[Black "Jakubowska, Anna"]
[WhiteFideId "2130734"]
[BlackFideId "1121952"]
[WhiteElo "2380"]
[BlackElo "1878"]
[Result "1-0"]
[Round "08"]
[TimeControl "180+1"]
[Date "2022.05.25"]
[WhiteClock "0:00:21"]
[BlackClock "0:00:03"]

1. e4 {[%clk 0:03:00]}  c6 {[%clk 0:02:59]} 2. d4 {[%clk 0:03:00]}  d5 {[%clk 0:02:59]} 3. Nc3 {[%clk 0:03:00]}  dxe4 {[%clk 0:02:59]} 4. Nxe4 {[%clk 0:03:01]}  Nf6 {[%clk 0:03:00]} 5. Nxf6+ {[%clk 0:03:01]}  exf6 {[%clk 0:03:00]} 6. c3 {[%clk 0:03:02]}  Bd6 {[%clk 0:03:01]} 7. Bd3 {[%clk 0:03:02]}  O-O {[%clk 0:03:01]} 8. Qc2 {[%clk 0:03:03]}  Re8+ {[%clk 0:03:01]} 9. Ne2 {[%clk 0:03:04]}  h5 {[%clk 0:03:01]} 10. Be3 {[%clk 0:03:05]}  Nd7 {[%clk 0:03:00]} 11. g4 {[%clk 0:03:05]}  h4 {[%clk 0:02:55]} 12. O-O-O {[%clk 0:03:04]}  Nf8 {[%clk 0:02:47]} 13. Rdg1 {[%clk 0:03:04]}  g6 {[%clk 0:02:44]} 14. g5 {[%clk 0:02:59]}  f5 {[%clk 0:02:44]} 15. c4 {[%clk 0:02:37]}  Be6 {[%clk 0:02:34]} 16. Kb1 {[%clk 0:02:34]}  b5 {[%clk 0:02:28]} 17. d5 {[%clk 0:02:16]}  cxd5 {[%clk 0:02:18]} 18. cxb5 {[%clk 0:02:14]}  Rc8 {[%clk 0:02:16]} 19. Qd2 {[%clk 0:02:11]}  d4 {[%clk 0:02:08]} 20. Nxd4 {[%clk 0:02:06]}  Bd5 {[%clk 0:02:08]} 21. Nc6 {[%clk 0:01:58]}  Qd7 {[%clk 0:01:48]} 22. Nxa7 {[%clk 0:01:53]}  Bxh1 {[%clk 0:01:43]} 23. Nxc8 {[%clk 0:01:52]}  Rxc8 {[%clk 0:01:38]} 24. Rxh1 {[%clk 0:01:52]}  f4 {[%clk 0:01:38]} 25. Bd4 {[%clk 0:01:43]}  Ne6 {[%clk 0:01:23]} 26. Bc3 {[%clk 0:01:39]}  Bc5 {[%clk 0:01:07]} 27. Rd1 {[%clk 0:01:31]}  Rd8 {[%clk 0:01:04]} 28. a4 {[%clk 0:01:15]}  Qa7 {[%clk 0:00:58]} 29. Qc2 {[%clk 0:01:04]}  Bd4 {[%clk 0:00:45]} 30. a5 {[%clk 0:00:46]}  Bxc3 {[%clk 0:00:34]} 31. Qxc3 {[%clk 0:00:47]}  Qxf2 {[%clk 0:00:33]} 32. b6 {[%clk 0:00:42]}  Qf3 {[%clk 0:00:33]} 33. Rd2 {[%clk 0:00:39]}  Qh1+ {[%clk 0:00:30]} 34. Qc1 {[%clk 0:00:36]}  Qb7 {[%clk 0:00:20]} 35. Bc4 {[%clk 0:00:32]}  Rxd2 {[%clk 0:00:14]} 36. Qxd2 {[%clk 0:00:33]}  Nc5 {[%clk 0:00:12]} 37. Qd8+ {[%clk 0:00:31]}  Kh7 {[%clk 0:00:10]} 38. Qd4 {[%clk 0:00:27]}  Na4 {[%clk 0:00:04]} 39. Qxf4 {[%clk 0:00:23]}  Qg2 {[%clk 0:00:03]} 40. Qxf7+ {[%clk 0:00:21]}  Kh8 {[%clk 0:00:03]} 41. Qg8# {[%clk 0:00:21]} 1-0


[Site "https://www.chess.com"]

[Event "Titled Tuesday Blitz May 24 Early 2022"]
[White "Rahman, Adel"]
[Black "Politov, Pavel Y."]
[WhiteFideId "14204177"]
[BlackFideId "24110515"]
[WhiteElo "2175"]
[BlackElo "2090"]
[Result "1-0"]
[Round "08"]
[TimeControl "180+1"]
[Date "2022.05.25"]
[WhiteClock "0:00:15"]
[BlackClock "0:00:06"]

1. e4 {[%clk 0:03:00]}  c5 {[%clk 0:02:52]} 2. Nf3 {[%clk 0:02:59]}  d6 {[%clk 0:02:52]} 3. d4 {[%clk 0:02:59]}  cxd4 {[%clk 0:02:53]} 4. Nxd4 {[%clk 0:02:59]}  Nf6 {[%clk 0:02:52]} 5. Nc3 {[%clk 0:02:59]}  a6 {[%clk 0:02:53]} 6. Bg5 {[%clk 0:02:59]}  e6 {[%clk 0:02:53]} 7. f4 {[%clk 0:02:59]}  h6 {[%clk 0:02:53]} 8. Bh4 {[%clk 0:02:58]}  Qb6 {[%clk 0:02:52]} 9. a3 {[%clk 0:02:56]}  Nc6 {[%clk 0:02:51]} 10. Bf2 {[%clk 0:02:49]}  Qc7 {[%clk 0:02:51]} 11. Nxc6 {[%clk 0:02:40]}  bxc6 {[%clk 0:02:40]} 12. Bd3 {[%clk 0:02:26]}  d5 {[%clk 0:02:38]} 13. e5 {[%clk 0:02:26]}  Nd7 {[%clk 0:02:37]} 14. Qh5 {[%clk 0:02:03]}  c5 {[%clk 0:02:33]} 15. O-O {[%clk 0:02:00]}  c4 {[%clk 0:02:32]} 16. Bg6 {[%clk 0:01:31]}  Nc5 {[%clk 0:02:10]} 17. f5 {[%clk 0:00:54]}  fxg6 {[%clk 0:02:10]} 18. Qxg6+ {[%clk 0:00:54]}  Qf7 {[%clk 0:02:08]} 19. Qg3 {[%clk 0:00:55]}  exf5 {[%clk 0:01:42]} 20. e6 {[%clk 0:00:50]}  Bxe6 {[%clk 0:01:39]} 21. Rae1 {[%clk 0:00:47]}  Ne4 {[%clk 0:01:34]} 22. Nxe4 {[%clk 0:00:32]}  dxe4 {[%clk 0:01:31]} 23. Bd4 {[%clk 0:00:32]}  Rd8 {[%clk 0:01:01]} 24. Rxe4 {[%clk 0:00:24]}  fxe4 {[%clk 0:00:22]} 25. Rxf7 {[%clk 0:00:21]}  Kxf7 {[%clk 0:00:14]} 26. c3 {[%clk 0:00:18]}  Kg8 {[%clk 0:00:09]} 27. Qf4 {[%clk 0:00:18]}  Be7 {[%clk 0:00:08]} 28. Qxe4 {[%clk 0:00:17]}  Rd6 {[%clk 0:00:08]} 29. Qe5 {[%clk 0:00:16]}  Kh7 {[%clk 0:00:06]} 30. Qxg7# {[%clk 0:00:15]} 1-0


[Site "https://www.chess.com"]

[Event "Titled Tuesday Blitz May 24 Early 2022"]
[White "Ramirez Vido, Robert Yorisan"]
[Black "Yang, Kaiqi"]
[WhiteFideId "3513823"]
[BlackFideId "8604398"]
[WhiteElo "2364"]
[BlackElo "2373"]
[Result "0-1"]
[Round "08"]
[TimeControl "180+1"]
[Date "2022.05.25"]
[WhiteClock "0:00:12"]
[BlackClock "0:01:14"]

1. g3 {[%clk 0:03:00]}  g6 {[%clk 0:02:58]} 2. Bg2 {[%clk 0:03:01]}  Bg7 {[%clk 0:02:58]} 3. d4 {[%clk 0:03:02]}  d5 {[%clk 0:02:58]} 4. Nf3 {[%clk 0:03:01]}  Nf6 {[%clk 0:02:57]} 5. O-O {[%clk 0:03:02]}  O-O {[%clk 0:02:57]} 6. Nbd2 {[%clk 0:03:02]}  Nbd7 {[%clk 0:02:53]} 7. b3 {[%clk 0:03:03]}  b6 {[%clk 0:02:53]} 8. Bb2 {[%clk 0:03:03]}  Bb7 {[%clk 0:02:53]} 9. e3 {[%clk 0:03:02]}  e6 {[%clk 0:02:53]} 10. c4 {[%clk 0:03:02]}  c5 {[%clk 0:02:53]} 11. dxc5 {[%clk 0:03:02]}  Nxc5 {[%clk 0:02:53]} 12. cxd5 {[%clk 0:03:00]}  Bxd5 {[%clk 0:02:53]} 13. Qe2 {[%clk 0:02:55]}  Qe7 {[%clk 0:02:48]} 14. Rac1 {[%clk 0:02:50]}  Rac8 {[%clk 0:02:47]} 15. Rfd1 {[%clk 0:02:50]}  Rfd8 {[%clk 0:02:42]} 16. Nc4 {[%clk 0:02:50]}  Qb7 {[%clk 0:02:25]} 17. Be5 {[%clk 0:02:21]}  Qe7 {[%clk 0:02:16]} 18. Nd4 {[%clk 0:02:02]}  Bxg2 {[%clk 0:02:10]} 19. Kxg2 {[%clk 0:02:03]}  Rd5 {[%clk 0:02:03]} 20. Nb5 {[%clk 0:01:48]}  Rcd8 {[%clk 0:01:55]} 21. Bd6 {[%clk 0:01:17]}  Qb7 {[%clk 0:01:52]} 22. Kg1 {[%clk 0:01:12]}  Nfe4 {[%clk 0:01:43]} 23. Rxd5 {[%clk 0:01:01]}  exd5 {[%clk 0:01:41]} 24. Bxc5 {[%clk 0:00:57]}  bxc5 {[%clk 0:01:37]} 25. Na5 {[%clk 0:00:19]}  Qa6 {[%clk 0:01:35]} 26. f3 {[%clk 0:00:13]}  Nd6 {[%clk 0:01:15]} 27. Nxd6 {[%clk 0:00:12]}  Qxe2 {[%clk 0:01:14]} 0-1


[Site "https://www.chess.com"]

[Event "Titled Tuesday Blitz May 24 Early 2022"]
[White "Rodchenkov, Sergey D."]
[Black "De Souza, Cristiano Gomes"]
[WhiteFideId "4168712"]
[BlackFideId "2151758"]
[WhiteElo "2306"]
[BlackElo "2068"]
[Result "1-0"]
[Round "08"]
[TimeControl "180+1"]
[Date "2022.05.25"]
[WhiteClock "0:01:38"]
[BlackClock "0:01:16"]

1. e4 {[%clk 0:02:56]}  c5 {[%clk 0:02:59]} 2. Nf3 {[%clk 0:02:55]}  d6 {[%clk 0:02:59]} 3. d4 {[%clk 0:02:55]}  cxd4 {[%clk 0:02:57]} 4. Nxd4 {[%clk 0:02:56]}  Nf6 {[%clk 0:02:57]} 5. Nc3 {[%clk 0:02:56]}  g6 {[%clk 0:02:58]} 6. Be3 {[%clk 0:02:55]}  Bg7 {[%clk 0:02:57]} 7. f3 {[%clk 0:02:55]}  O-O {[%clk 0:02:57]} 8. Qd2 {[%clk 0:02:55]}  Nc6 {[%clk 0:02:58]} 9. O-O-O {[%clk 0:02:55]}  d5 {[%clk 0:02:58]} 10. exd5 {[%clk 0:02:53]}  Nxd5 {[%clk 0:02:57]} 11. Nxc6 {[%clk 0:02:53]}  bxc6 {[%clk 0:02:57]} 12. Bd4 {[%clk 0:02:53]}  e5 {[%clk 0:02:56]} 13. Bc5 {[%clk 0:02:52]}  Be6 {[%clk 0:02:56]} 14. Ne4 {[%clk 0:02:52]}  Re8 {[%clk 0:02:52]} 15. h4 {[%clk 0:02:52]}  h6 {[%clk 0:02:51]} 16. h5 {[%clk 0:02:47]}  g5 {[%clk 0:02:48]} 17. Bc4 {[%clk 0:02:45]}  f5 {[%clk 0:02:46]} 18. Nc3 {[%clk 0:02:40]}  Rc8 {[%clk 0:02:32]} 19. Nxd5 {[%clk 0:02:34]}  cxd5 {[%clk 0:02:32]} 20. Bxd5 {[%clk 0:02:35]}  Bxd5 {[%clk 0:02:27]} 21. Qxd5+ {[%clk 0:02:36]}  Qxd5 {[%clk 0:02:26]} 22. Rxd5 {[%clk 0:02:36]}  e4 {[%clk 0:02:15]} 23. Re1 {[%clk 0:02:10]}  exf3 {[%clk 0:02:11]} 24. Rxe8+ {[%clk 0:02:11]}  Rxe8 {[%clk 0:02:07]} 25. gxf3 {[%clk 0:02:12]}  Re1+ {[%clk 0:01:46]} 26. Kd2 {[%clk 0:02:11]}  Rh1 {[%clk 0:01:46]} 27. b4 {[%clk 0:02:06]}  Rxh5 {[%clk 0:01:43]} 28. b5 {[%clk 0:02:06]}  Rh2+ {[%clk 0:01:44]} 29. Kd3 {[%clk 0:02:03]}  g4 {[%clk 0:01:43]} 30. Bxa7 {[%clk 0:01:45]}  g3 {[%clk 0:01:38]} 31. b6 {[%clk 0:01:44]}  g2 {[%clk 0:01:16]} 32. b7 {[%clk 0:01:38]} 1-0


[Site "https://www.chess.com"]